[Event "*** Titled Tuesday Blitz"]
[Site "Chess.com"]
[Date "2021.02.02"]
[Round "2"]
[White "joshdaruca"]
[Black "LucaBrasi1968"]
[Result "1/2-1/2"]
[WhiteElo "2734"]
[BlackElo "2511"]
[TimeControl "180+1"]
[EndTime "10:18:30 PST"]
[Termination "Game drawn by repetition"]

1. Nf3 {[%clk 0:03:00.9]} 1... d5 {[%clk 0:02:59.3]} 2. g3 {[%clk 0:02:51.8]}
2... c6 {[%clk 0:02:59.2]} 3. c4 {[%clk 0:02:44.1]} 3... Nf6 {[%clk 0:02:58.6]}
4. Bg2 {[%clk 0:02:44]} 4... e6 {[%clk 0:02:57.9]} 5. O-O {[%clk 0:02:43.1]}
5... Bd6 {[%clk 0:02:57.6]} 6. d4 {[%clk 0:02:42]} 6... Ne4 {[%clk 0:02:54.3]}
7. b3 {[%clk 0:02:41.5]} 7... f5 {[%clk 0:02:54.3]} 8. Bb2 {[%clk 0:02:41.7]}
8... Qe7 {[%clk 0:02:54.1]} 9. Nbd2 {[%clk 0:02:41.3]} 9... O-O {[%clk
0:02:53.7]} 10. Ne5 {[%clk 0:02:41.3]} 10... b6 {[%clk 0:02:53.1]} 11. Ndf3
{[%clk 0:02:41.2]} 11... Bb7 {[%clk 0:02:52.5]} 12. Qc2 {[%clk 0:02:41.6]} 12...
Nd7 {[%clk 0:02:52.3]} 13. Rac1 {[%clk 0:02:41.2]} 13... Rac8 {[%clk 0:02:52]}
14. Nxd7 {[%clk 0:02:41]} 14... Qxd7 {[%clk 0:02:51.7]} 15. Ne5 {[%clk
0:02:37.1]} 15... Qe7 {[%clk 0:02:52]} 16. f3 {[%clk 0:02:35.7]} 16... Nf6
{[%clk 0:02:51.6]} 17. Kh1 {[%clk 0:02:34.1]} 17... c5 {[%clk 0:02:50.3]} 18.
dxc5 {[%clk 0:02:32.1]} 18... Bxc5 {[%clk 0:02:49.8]} 19. Qb1 {[%clk 0:02:20.5]}
19... Rfd8 {[%clk 0:02:39.6]} 20. Rfd1 {[%clk 0:02:20.6]} 20... Nd7 {[%clk
0:02:20.1]} 21. Nd3 {[%clk 0:02:05.1]} 21... Be3 {[%clk 0:02:19.2]} 22. Rc2
{[%clk 0:02:02.5]} 22... dxc4 {[%clk 0:02:17.8]} 23. bxc4 {[%clk 0:02:02.7]}
23... Nc5 {[%clk 0:02:15.4]} 24. Nxc5 {[%clk 0:01:47.2]} 24... Bxc5 {[%clk
0:02:14.3]} 25. Rcd2 {[%clk 0:01:40.3]} 25... Rxd2 {[%clk 0:02:13.5]} 26. Rxd2
{[%clk 0:01:41.1]} 26... Rd8 {[%clk 0:02:13.8]} 27. Rxd8+ {[%clk 0:01:36.5]}
27... Qxd8 {[%clk 0:02:13.4]} 28. Qd3 {[%clk 0:01:36.6]} 28... Qd6 {[%clk
0:01:47.1]} 29. f4 {[%clk 0:01:33.7]} 29... Bxg2+ {[%clk 0:01:42.9]} 30. Kxg2
{[%clk 0:01:34.6]} 30... Qxd3 {[%clk 0:01:41.7]} 31. exd3 {[%clk 0:01:33.6]}
31... Kf7 {[%clk 0:01:41.8]} 32. Be5 {[%clk 0:01:30.4]} 32... a6 {[%clk
0:01:40.5]} 33. a4 {[%clk 0:01:29]} 33... Be7 {[%clk 0:01:16.5]} 34. Kf3 {[%clk
0:01:27.3]} 34... g6 {[%clk 0:01:13.4]} 35. d4 {[%clk 0:01:21.4]} 35... Bd8
{[%clk 0:01:12.3]} 36. c5 {[%clk 0:01:19]} 36... bxc5 {[%clk 0:01:10.4]} 37.
dxc5 {[%clk 0:01:19.8]} 37... Ke8 {[%clk 0:01:08.5]} 38. c6 {[%clk 0:01:19.9]}
38... Bb6 {[%clk 0:01:07.1]} 39. h3 {[%clk 0:01:17.9]} 39... Kd8 {[%clk
0:01:03.9]} 40. g4 {[%clk 0:01:14.7]} 40... Bc7 {[%clk 0:01:03.6]} 41. Bd4
{[%clk 0:01:13.2]} 41... Bd6 {[%clk 0:01:01.7]} 42. gxf5 {[%clk 0:01:11]} 42...
exf5 {[%clk 0:00:59.7]} 43. Bb6+ {[%clk 0:01:11.9]} 43... Bc7 {[%clk 0:00:59.6]}
44. Bc5 {[%clk 0:01:10.7]} 44... Bb8 {[%clk 0:00:58.1]} 45. Bd4 {[%clk
0:01:08.7]} 45... Bd6 {[%clk 0:00:56.7]} 46. Bb6+ {[%clk 0:01:07.4]} 46... Bc7
{[%clk 0:00:57]} 47. Bc5 {[%clk 0:01:06.6]} 47... Bb8 {[%clk 0:00:57.1]} 48. Bd4
{[%clk 0:01:03.7]} 48... Bd6 {[%clk 0:00:56.3]} 1/2-1/2

[Event "*** Titled Tuesday Blitz"]
[Site "Chess.com"]
[Date "2021.02.02"]
[Round "2"]
[White "ClauSanLuis"]
[Black "Grammnik"]
[Result "0-1"]
[WhiteElo "2064"]
[BlackElo "2394"]
[TimeControl "180+1"]
[EndTime "10:18:30 PST"]
[Termination "Grammnik won by resignation"]

1. d4 {[%clk 0:03:00.9]} 1... d5 {[%clk 0:02:59.4]} 2. Bg5 {[%clk 0:03:01.2]}
2... Nf6 {[%clk 0:02:57.8]} 3. Bxf6 {[%clk 0:03:01.2]} 3... exf6 {[%clk
0:02:58.7]} 4. e3 {[%clk 0:03:01.8]} 4... Bd6 {[%clk 0:02:57.5]} 5. c4 {[%clk
0:03:02.2]} 5... dxc4 {[%clk 0:02:56.3]} 6. Bxc4 {[%clk 0:03:01.1]} 6... O-O
{[%clk 0:02:57.2]} 7. Nc3 {[%clk 0:03:01.1]} 7... c5 {[%clk 0:02:57.2]} 8. d5
{[%clk 0:02:54.8]} 8... f5 {[%clk 0:02:56.9]} 9. Nge2 {[%clk 0:02:52.1]} 9...
Nd7 {[%clk 0:02:53.2]} 10. O-O {[%clk 0:02:39.9]} 10... Ne5 {[%clk 0:02:52.4]}
11. Bb3 {[%clk 0:02:30.6]} 11... a6 {[%clk 0:02:51]} 12. a4 {[%clk 0:02:29.4]}
12... Rb8 {[%clk 0:02:50.9]} 13. a5 {[%clk 0:02:18.8]} 13... Bc7 {[%clk
0:02:50.4]} 14. Na4 {[%clk 0:02:10]} 14... c4 {[%clk 0:02:43.1]} 15. Bc2 {[%clk
0:02:06.7]} 15... Bxa5 {[%clk 0:02:42.6]} 16. Qd4 {[%clk 0:02:04.4]} 16... Re8
{[%clk 0:02:39.7]} 17. d6 {[%clk 0:01:45]} 17... b5 {[%clk 0:02:36]} 18. Nc5
{[%clk 0:01:44.7]} 18... Bb6 {[%clk 0:02:34.8]} 19. b4 {[%clk 0:01:33.7]} 19...
cxb3 {[%clk 0:02:28.4]} 20. Bxb3 {[%clk 0:01:32.6]} 20... Nd7 {[%clk 0:02:28.4]}
21. Bxf7+ {[%clk 0:01:20.3]} 21... Kh8 {[%clk 0:02:18.6]} 22. Bxe8 {[%clk
0:00:54.7]} 22... Bxc5 {[%clk 0:02:15.1]} 23. Qd5 {[%clk 0:00:40.5]} 23... Qxe8
{[%clk 0:02:14.5]} 24. Qxf5 {[%clk 0:00:39.5]} 24... Bxd6 {[%clk 0:02:11.7]} 25.
Rad1 {[%clk 0:00:35.4]} 25... Nf6 {[%clk 0:02:11.1]} 26. Qg5 {[%clk 0:00:33.6]}
26... Be5 {[%clk 0:02:07.3]} 27. f4 {[%clk 0:00:31.1]} 27... Bc7 {[%clk
0:02:06]} 28. f5 {[%clk 0:00:31.4]} 28... Bb6 {[%clk 0:02:04.1]} 29. Nd4 {[%clk
0:00:30.9]} 29... Bb7 {[%clk 0:02:01.8]} 30. Kh1 {[%clk 0:00:30.1]} 30... Qh5
{[%clk 0:01:43]} 31. Qg3 {[%clk 0:00:27.8]} 31... Rg8 {[%clk 0:01:33.5]} 32. Ne6
{[%clk 0:00:28.2]} 32... Ne4 {[%clk 0:01:32.5]} 33. Qe5 {[%clk 0:00:24.2]} 33...
Nf2+ {[%clk 0:01:31.9]} 34. Kg1 {[%clk 0:00:22.3]} 34... Nxd1 {[%clk 0:01:31.6]}
35. f6 {[%clk 0:00:18.1]} 35... Qxe5 {[%clk 0:01:28.7]} 36. fxg7+ {[%clk
0:00:18.3]} 36... Rxg7 {[%clk 0:01:28.9]} 37. Rf8+ {[%clk 0:00:17.7]} 37... Rg8
{[%clk 0:01:29]} 0-1

[Event "*** Titled Tuesday Blitz"]
[Site "Chess.com"]
[Date "2021.02.02"]
[Round "2"]
[White "Grandmaster2B"]
[Black "milenapn"]
[Result "1-0"]
[WhiteElo "2605"]
[BlackElo "2022"]
[TimeControl "180+1"]
[EndTime "10:18:31 PST"]
[Termination "Grandmaster2B won by resignation"]

1. e4 {[%clk 0:03:00.9]} 1... e5 {[%clk 0:02:57.3]} 2. Nf3 {[%clk 0:03:01]} 2...
Nc6 {[%clk 0:02:57.7]} 3. Bb5 {[%clk 0:03:01.5]} 3... a6 {[%clk 0:02:57.9]} 4.
Ba4 {[%clk 0:03:02]} 4... Nf6 {[%clk 0:02:56.9]} 5. d3 {[%clk 0:03:02.3]} 5...
d6 {[%clk 0:02:53.5]} 6. c3 {[%clk 0:03:01.7]} 6... g6 {[%clk 0:02:53.3]} 7. h3
{[%clk 0:03:01.4]} 7... Bg7 {[%clk 0:02:53.2]} 8. Be3 {[%clk 0:03:01.8]} 8...
O-O {[%clk 0:02:52.9]} 9. Nbd2 {[%clk 0:03:02.4]} 9... b5 {[%clk 0:02:53]} 10.
Bc2 {[%clk 0:03:02.5]} 10... Nd7 {[%clk 0:02:53]} 11. O-O {[%clk 0:02:55.9]}
11... f5 {[%clk 0:02:52.4]} 12. Bb3+ {[%clk 0:02:54.8]} 12... Kh8 {[%clk
0:02:51.3]} 13. exf5 {[%clk 0:02:54.9]} 13... gxf5 {[%clk 0:02:50.2]} 14. Ng5
{[%clk 0:02:45.9]} 14... Qe7 {[%clk 0:02:32.1]} 15. f4 {[%clk 0:02:35]} 15...
Nf6 {[%clk 0:02:22.2]} 16. a4 {[%clk 0:02:25.2]} 16... bxa4 {[%clk 0:02:14]} 17.
Rxa4 {[%clk 0:02:23.1]} 17... h6 {[%clk 0:02:12.3]} 18. Ngf3 {[%clk 0:02:18]}
18... Bd7 {[%clk 0:02:12.2]} 19. Nh4 {[%clk 0:02:16]} 19... Kh7 {[%clk
0:02:03.9]} 20. Ra2 {[%clk 0:02:06]} 20... e4 {[%clk 0:02:01.7]} 21. d4 {[%clk
0:01:52]} 21... Be6 {[%clk 0:01:53.3]} 22. Bxe6 {[%clk 0:01:34.5]} 22... Qxe6
{[%clk 0:01:54.2]} 23. Qb3 {[%clk 0:01:34.4]} 23... d5 {[%clk 0:01:48.6]} 24.
Rfa1 {[%clk 0:01:29.5]} 24... Rfb8 {[%clk 0:01:45.4]} 25. Qc2 {[%clk 0:01:28.9]}
25... Rb6 {[%clk 0:01:44.7]} 26. Nb3 {[%clk 0:01:13.9]} 26... Nd7 {[%clk
0:01:41.7]} 27. Nc5 {[%clk 0:01:09]} 27... Nxc5 {[%clk 0:01:25.5]} 28. dxc5
{[%clk 0:01:09.9]} 28... Rb5 {[%clk 0:01:25.4]} 29. Rxa6 {[%clk 0:01:10.2]}
29... Rxa6 {[%clk 0:01:24]} 30. Rxa6 {[%clk 0:01:09.8]} 30... Ra5 {[%clk
0:01:18.8]} 31. Qe2 {[%clk 0:00:50.6]} 31... Bf6 {[%clk 0:01:05]} 32. Nxf5
{[%clk 0:00:29.1]} 32... Qxf5 {[%clk 0:01:02]} 33. Rxc6 {[%clk 0:00:27.5]} 33...
Qd7 {[%clk 0:01:00.6]} 34. Rxf6 {[%clk 0:00:25.7]} 1-0

[Event "*** Titled Tuesday Blitz"]
[Site "Chess.com"]
[Date "2021.02.02"]
[Round "2"]
[White "CraiggoryC"]
[Black "Fluke180"]
[Result "1-0"]
[WhiteElo "2128"]
[BlackElo "2355"]
[TimeControl "180+1"]
[EndTime "10:18:31 PST"]
[Termination "CraiggoryC won by checkmate"]

1. e4 {[%clk 0:03:00.9]} 1... c6 {[%clk 0:02:59.3]} 2. Nf3 {[%clk 0:03:00.5]}
2... d5 {[%clk 0:02:59.7]} 3. e5 {[%clk 0:03:01.1]} 3... Bg4 {[%clk 0:02:59.3]}
4. d4 {[%clk 0:03:01.7]} 4... e6 {[%clk 0:02:59.4]} 5. c3 {[%clk 0:03:02.3]}
5... c5 {[%clk 0:02:59.6]} 6. dxc5 {[%clk 0:03:02.9]} 6... Bxc5 {[%clk
0:02:59.1]} 7. Qa4+ {[%clk 0:03:03.4]} 7... Nc6 {[%clk 0:02:58.9]} 8. Qxg4
{[%clk 0:03:03.9]} 8... Nge7 {[%clk 0:02:58]} 9. Bd3 {[%clk 0:03:00.1]} 9... Ng6
{[%clk 0:02:57.2]} 10. O-O {[%clk 0:02:41.8]} 10... Rc8 {[%clk 0:02:54.9]} 11.
b4 {[%clk 0:02:17.6]} 11... Bb6 {[%clk 0:02:54.3]} 12. Re1 {[%clk 0:02:15.7]}
12... a5 {[%clk 0:02:42.9]} 13. b5 {[%clk 0:02:13.8]} 13... Nce7 {[%clk
0:02:42.2]} 14. Ba3 {[%clk 0:02:06.3]} 14... h5 {[%clk 0:02:38.1]} 15. Qg5
{[%clk 0:01:53.8]} 15... Bc5 {[%clk 0:02:32.2]} 16. Bxg6 {[%clk 0:01:45.8]}
16... fxg6 {[%clk 0:02:29.3]} 17. Bxc5 {[%clk 0:01:40.4]} 17... Rxc5 {[%clk
0:02:28.7]} 18. Nd4 {[%clk 0:01:40.1]} 18... Qc8 {[%clk 0:02:25.7]} 19. a4
{[%clk 0:01:24.7]} 19... Rf8 {[%clk 0:02:25]} 20. Re3 {[%clk 0:01:13.1]} 20...
Kd7 {[%clk 0:02:20.3]} 21. Rf3 {[%clk 0:01:01.2]} 21... Rxf3 {[%clk 0:02:18.6]}
22. Nxf3 {[%clk 0:00:57.1]} 22... Qf8 {[%clk 0:02:15.3]} 23. Nd4 {[%clk
0:00:41.5]} 23... Rc4 {[%clk 0:02:13.3]} 24. Qe3 {[%clk 0:00:35.3]} 24... Nf5
{[%clk 0:02:12.3]} 25. Nxf5 {[%clk 0:00:34.5]} 25... Qxf5 {[%clk 0:02:13.1]} 26.
Nd2 {[%clk 0:00:31.9]} 26... Rc7 {[%clk 0:02:10.2]} 27. Rc1 {[%clk 0:00:25.1]}
27... g5 {[%clk 0:02:09.6]} 28. c4 {[%clk 0:00:23.9]} 28... h4 {[%clk
0:02:07.4]} 29. h3 {[%clk 0:00:23.3]} 29... g4 {[%clk 0:02:06.4]} 30. hxg4
{[%clk 0:00:20.7]} 30... Qxg4 {[%clk 0:02:07.3]} 31. Nf3 {[%clk 0:00:16.8]}
31... h3 {[%clk 0:02:02.9]} 32. g3 {[%clk 0:00:14.3]} 32... Rxc4 {[%clk
0:01:58.5]} 33. Rxc4 {[%clk 0:00:12]} 33... Qxc4 {[%clk 0:01:59.4]} 34. Qb6
{[%clk 0:00:10.3]} 34... Qe4 {[%clk 0:01:51.1]} 35. Qxb7+ {[%clk 0:00:08]} 35...
Ke8 {[%clk 0:01:51.3]} 36. Qc6+ {[%clk 0:00:07.5]} 36... Kf7 {[%clk 0:01:51.5]}
37. Ng5+ {[%clk 0:00:07.2]} 37... Kg6 {[%clk 0:01:51.2]} 38. Nxe4 {[%clk
0:00:07.7]} 38... Kf5 {[%clk 0:01:51.7]} 39. Nd6+ {[%clk 0:00:07.5]} 39... Kxe5
{[%clk 0:01:51.9]} 40. b6 {[%clk 0:00:08.2]} 40... d4 {[%clk 0:01:52]} 41. b7
{[%clk 0:00:08.6]} 41... d3 {[%clk 0:01:52.9]} 42. b8=Q {[%clk 0:00:08.2]} 42...
d2 {[%clk 0:01:53.8]} 43. Nc4+ {[%clk 0:00:08.2]} 43... Kf6 {[%clk 0:01:54]} 44.
Qf3+ {[%clk 0:00:07.8]} 44... Kg6 {[%clk 0:01:53.3]} 45. Qe8+ {[%clk 0:00:06.9]}
45... Kh7 {[%clk 0:01:53.3]} 46. Qfh5# {[%clk 0:00:06.4]} 1-0

[Event "*** Titled Tuesday Blitz"]
[Site "Chess.com"]
[Date "2021.02.02"]
[Round "2"]
[White "Gusarov91"]
[Black "Sunnika"]
[Result "1-0"]
[WhiteElo "1216"]
[BlackElo "2338"]
[TimeControl "180+1"]
[EndTime "10:18:33 PST"]
[Termination "Gusarov91 won on time"]

1. d4 {[%clk 0:03:00.9]} 1... Nf6 {[%clk 0:02:53.2]} 2. Nf3 {[%clk 0:03:00.6]}
2... c5 {[%clk 0:02:53.3]} 3. d5 {[%clk 0:03:00.6]} 3... e6 {[%clk 0:02:53.1]}
4. Nc3 {[%clk 0:03:00.3]} 4... exd5 {[%clk 0:02:54]} 5. Nxd5 {[%clk 0:03:00.5]}
5... Nxd5 {[%clk 0:02:53.4]} 6. Qxd5 {[%clk 0:03:00.1]} 6... Be7 {[%clk
0:02:54]} 7. Bf4 {[%clk 0:02:59.6]} 7... Nc6 {[%clk 0:02:53]} 8. e4 {[%clk
0:02:59.1]} 8... Nb4 {[%clk 0:02:48.1]} 9. Qd2 {[%clk 0:02:58.4]} 9... d5 {[%clk
0:02:45.8]} 10. exd5 {[%clk 0:02:53.6]} 10... Nxd5 {[%clk 0:02:45.3]} 11. Bb5+
{[%clk 0:02:53.4]} 11... Bd7 {[%clk 0:02:37.9]} 12. Qxd5 {[%clk 0:02:52.8]}
12... Bxb5 {[%clk 0:02:37]} 13. Qxb7 {[%clk 0:02:53.3]} 13... a6 {[%clk
0:01:37.4]} 14. Rd1 {[%clk 0:02:50.6]} 14... Qc8 {[%clk 0:01:32.9]} 15. Qxc8+
{[%clk 0:02:46.7]} 15... Rxc8 {[%clk 0:01:33.8]} 16. b3 {[%clk 0:02:39.7]} 16...
c4 {[%clk 0:01:32.2]} 17. Nd4 {[%clk 0:02:39.2]} 17... cxb3 {[%clk 0:01:31]} 18.
axb3 {[%clk 0:02:33.8]} 18... O-O {[%clk 0:00:48.8]} 19. c4 {[%clk 0:02:31.3]}
19... Bd7 {[%clk 0:00:17.1]} 20. O-O {[%clk 0:02:29.5]} 20... Bc5 {[%clk
0:00:12.3]} 21. Nf3 {[%clk 0:02:12.4]} 21... Bg4 {[%clk 0:00:10.5]} 22. Bd6
{[%clk 0:02:11.8]} 22... Bxf3 {[%clk 0:00:09.7]} 23. gxf3 {[%clk 0:02:11.3]}
23... Bxd6 {[%clk 0:00:08.9]} 24. Rxd6 {[%clk 0:02:12.2]} 24... Rb8 {[%clk
0:00:09]} 25. Rb1 {[%clk 0:02:09]} 25... Rfc8 {[%clk 0:00:07.2]} 26. Kg2 {[%clk
0:02:05.9]} 26... Kf8 {[%clk 0:00:06]} 27. Rxa6 {[%clk 0:02:05.2]} 27... Rxc4
{[%clk 0:00:05.5]} 28. bxc4 {[%clk 0:02:04]} 28... Rxb1 {[%clk 0:00:06]} 29.
Ra8+ {[%clk 0:02:04.9]} 29... Ke7 {[%clk 0:00:05.3]} 30. Ra7+ {[%clk 0:02:05.8]}
30... Kf6 {[%clk 0:00:04.8]} 31. Rc7 {[%clk 0:02:04.5]} 31... Rc1 {[%clk
0:00:03.6]} 32. f4 {[%clk 0:02:04.2]} 32... g6 {[%clk 0:00:02.3]} 33. Kg3 {[%clk
0:02:03.5]} 33... h5 {[%clk 0:00:03.2]} 34. Rc5 {[%clk 0:01:59.7]} 34... Rc2
{[%clk 0:00:02.2]} 35. h4 {[%clk 0:01:58.3]} 35... Kg7 {[%clk 0:00:01.2]} 36. f5
{[%clk 0:01:58]} 36... Kf6 {[%clk 0:00:01.4]} 37. fxg6 {[%clk 0:01:57.9]} 37...
fxg6 {[%clk 0:00:02.1]} 38. Rc6+ {[%clk 0:01:58.2]} 38... Kg7 {[%clk 0:00:02.2]}
39. c5 {[%clk 0:01:58.6]} 39... Kf7 {[%clk 0:00:02.4]} 40. f3 {[%clk 0:01:58.8]}
40... Kg7 {[%clk 0:00:03.2]} 41. Rc8 {[%clk 0:01:58.8]} 41... Rc4 {[%clk
0:00:02]} 42. Rc6 {[%clk 0:01:57.5]} 42... Kf7 {[%clk 0:00:01.7]} 43. Rc7+
{[%clk 0:01:56.6]} 43... Kf6 {[%clk 0:00:01.8]} 44. f4 {[%clk 0:01:56.8]} 44...
Ke6 {[%clk 0:00:01.2]} 45. Kf3 {[%clk 0:01:53.6]} 1-0

[Event "*** Titled Tuesday Blitz"]
[Site "Chess.com"]
[Date "2021.02.02"]
[Round "2"]
[White "vladjianu"]
[Black "Al_Shima"]
[Result "1-0"]
[WhiteElo "2587"]
[BlackElo "2298"]
[TimeControl "180+1"]
[EndTime "10:18:34 PST"]
[Termination "vladjianu won by resignation"]

1. d4 {[%clk 0:03:00.9]} 1... c5 {[%clk 0:02:56.4]} 2. d5 {[%clk 0:02:59]} 2...
e5 {[%clk 0:02:55.3]} 3. e4 {[%clk 0:02:54]} 3... d6 {[%clk 0:02:54.6]} 4. Nc3
{[%clk 0:02:47.8]} 4... f5 {[%clk 0:02:54.3]} 5. Bb5+ {[%clk 0:02:40.8]} 5...
Bd7 {[%clk 0:02:38.7]} 6. exf5 {[%clk 0:02:40]} 6... Bxb5 {[%clk 0:02:31.1]} 7.
Qh5+ {[%clk 0:02:30.3]} 7... g6 {[%clk 0:01:54.1]} 8. fxg6 {[%clk 0:02:31.2]}
8... Nf6 {[%clk 0:01:54.1]} 9. g7+ {[%clk 0:02:29.6]} 9... Nxh5 {[%clk
0:01:54.1]} 10. gxh8=Q {[%clk 0:02:29.8]} 10... Ba6 {[%clk 0:01:33.1]} 11. Qxh7
{[%clk 0:02:26.3]} 11... Nf6 {[%clk 0:01:28.2]} 12. Qg6+ {[%clk 0:02:25]} 12...
Ke7 {[%clk 0:01:21.4]} 13. Bg5 {[%clk 0:02:19.8]} 13... Nd7 {[%clk 0:01:21.7]}
14. Ne4 {[%clk 0:02:05.7]} 14... Qe8 {[%clk 0:01:00.5]} 15. Bxf6+ {[%clk
0:02:04]} 15... Nxf6 {[%clk 0:01:00.2]} 16. Qxf6+ {[%clk 0:02:04.9]} 16... Kd7
{[%clk 0:00:59.2]} 17. Nf3 {[%clk 0:01:55.7]} 17... Be7 {[%clk 0:00:57]} 18.
Qe6+ {[%clk 0:01:54.1]} 18... Kc7 {[%clk 0:00:57.3]} 19. O-O-O {[%clk
0:01:53.2]} 19... Qf8 {[%clk 0:00:45.6]} 20. Rhe1 {[%clk 0:01:46.4]} 20... Re8
{[%clk 0:00:38.4]} 21. Kb1 {[%clk 0:01:34.3]} 21... b5 {[%clk 0:00:38.1]} 22.
Nxc5 {[%clk 0:01:18.5]} 22... Bc8 {[%clk 0:00:37.6]} 23. Qg6 {[%clk 0:01:14.3]}
23... dxc5 {[%clk 0:00:20.4]} 24. Rxe5 {[%clk 0:01:10.1]} 24... Bd7 {[%clk
0:00:07.4]} 25. Rxe7 {[%clk 0:01:05.5]} 25... Rxe7 {[%clk 0:00:04.5]} 26. d6+
{[%clk 0:01:05.9]} 1-0

[Event "*** Titled Tuesday Blitz"]
[Site "Chess.com"]
[Date "2021.02.02"]
[Round "2"]
[White "SilviusTiberius"]
[Black "jpS520"]
[Result "1-0"]
[WhiteElo "2474"]
[BlackElo "2277"]
[TimeControl "180+1"]
[EndTime "10:18:35 PST"]
[Termination "SilviusTiberius won by resignation"]

1. e4 {[%clk 0:03:00.9]} 1... c5 {[%clk 0:02:58.9]} 2. Nf3 {[%clk 0:03:01.2]}
2... Nc6 {[%clk 0:02:59]} 3. d4 {[%clk 0:03:01.7]} 3... cxd4 {[%clk 0:02:57.6]}
4. Nxd4 {[%clk 0:03:02.2]} 4... g6 {[%clk 0:02:57.6]} 5. c4 {[%clk 0:03:01]}
5... Nf6 {[%clk 0:02:55.8]} 6. Nc3 {[%clk 0:03:00.9]} 6... d6 {[%clk 0:02:55.4]}
7. f3 {[%clk 0:02:59.4]} 7... Nxd4 {[%clk 0:02:53.3]} 8. Qxd4 {[%clk 0:03:00.3]}
8... Bg7 {[%clk 0:02:52.9]} 9. Be3 {[%clk 0:03:00.8]} 9... O-O {[%clk
0:02:51.4]} 10. Qd2 {[%clk 0:03:01.2]} 10... a5 {[%clk 0:02:48.1]} 11. Na4
{[%clk 0:03:00.8]} 11... Bd7 {[%clk 0:02:37.2]} 12. Nb6 {[%clk 0:02:59.8]} 12...
Rb8 {[%clk 0:02:24.6]} 13. Qxa5 {[%clk 0:03:00]} 13... Bc6 {[%clk 0:02:00.7]}
14. Qb4 {[%clk 0:03:00.2]} 14... Nd7 {[%clk 0:01:56.6]} 15. Rd1 {[%clk
0:02:58.5]} 15... Nxb6 {[%clk 0:01:53.7]} 16. Bxb6 {[%clk 0:02:57.3]} 16... Qd7
{[%clk 0:01:52.9]} 17. Be2 {[%clk 0:02:54.9]} 17... Ra8 {[%clk 0:01:51]} 18. a3
{[%clk 0:02:45.9]} 18... Ra4 {[%clk 0:01:25]} 19. Qd2 {[%clk 0:02:44.6]} 19...
Ra6 {[%clk 0:01:07.3]} 20. Bd4 {[%clk 0:02:43.3]} 20... Ba4 {[%clk 0:01:01.8]}
21. Bxg7 {[%clk 0:02:32.7]} 21... Kxg7 {[%clk 0:01:01.3]} 22. Qc3+ {[%clk
0:02:31.2]} 22... Kg8 {[%clk 0:00:58.6]} 23. b3 {[%clk 0:02:26.6]} 23... Bc6
{[%clk 0:00:58.4]} 24. a4 {[%clk 0:02:27]} 24... h5 {[%clk 0:00:46.2]} 25. O-O
{[%clk 0:02:24.2]} 25... Raa8 {[%clk 0:00:22.2]} 26. Rfe1 {[%clk 0:02:19.7]}
26... Qc7 {[%clk 0:00:20.4]} 27. Qe3 {[%clk 0:02:10.7]} 27... Kg7 {[%clk
0:00:17]} 28. f4 {[%clk 0:02:10.7]} 28... b6 {[%clk 0:00:11.3]} 29. Bf3 {[%clk
0:02:08.7]} 29... Qb7 {[%clk 0:00:09.9]} 30. f5 {[%clk 0:02:06.3]} 30... Rad8
{[%clk 0:00:07.7]} 31. fxg6 {[%clk 0:02:02.4]} 31... fxg6 {[%clk 0:00:07.3]} 32.
Qg5 {[%clk 0:02:02.9]} 32... Rf6 {[%clk 0:00:07.2]} 33. Bxh5 {[%clk 0:02:01.6]}
33... Rdf8 {[%clk 0:00:06.6]} 34. e5 {[%clk 0:01:55.7]} 34... dxe5 {[%clk
0:00:05.9]} 35. Rxe5 {[%clk 0:01:54.5]} 35... Be4 {[%clk 0:00:05.3]} 36. Re1
{[%clk 0:01:50.1]} 36... Rf4 {[%clk 0:00:02.9]} 37. Rxe7+ {[%clk 0:01:48.4]}
37... R8f7 {[%clk 0:00:02.7]} 38. Rxb7 {[%clk 0:01:47.4]} 1-0

[Event "*** Titled Tuesday Blitz"]
[Site "Chess.com"]
[Date "2021.02.02"]
[Round "2"]
[White "banane_verte"]
[Black "politeplayer"]
[Result "1-0"]
[WhiteElo "2430"]
[BlackElo "2197"]
[TimeControl "180+1"]
[EndTime "10:18:35 PST"]
[Termination "banane_verte won by resignation"]

1. e4 {[%clk 0:03:00.9]} 1... e6 {[%clk 0:02:39.3]} 2. d4 {[%clk 0:03:00.5]}
2... d5 {[%clk 0:02:37.1]} 3. exd5 {[%clk 0:03:01.4]} 3... exd5 {[%clk
0:02:36.4]} 4. Nf3 {[%clk 0:03:01.4]} 4... Nf6 {[%clk 0:02:35.4]} 5. Bd3 {[%clk
0:03:00.7]} 5... Bd6 {[%clk 0:02:34.6]} 6. Qe2+ {[%clk 0:03:00.1]} 6... Be6
{[%clk 0:02:33.5]} 7. Ng5 {[%clk 0:03:00.1]} 7... Qe7 {[%clk 0:02:27.2]} 8. Nxe6
{[%clk 0:02:58.8]} 8... fxe6 {[%clk 0:02:26]} 9. O-O {[%clk 0:02:52.6]} 9... Nc6
{[%clk 0:02:23.9]} 10. c3 {[%clk 0:02:52.2]} 10... O-O-O {[%clk 0:02:24.1]} 11.
Re1 {[%clk 0:02:49.8]} 11... Rhe8 {[%clk 0:01:55.2]} 12. Bg5 {[%clk 0:02:46.6]}
12... e5 {[%clk 0:01:53.2]} 13. Nd2 {[%clk 0:02:41.5]} 13... exd4 {[%clk
0:01:44]} 14. Qxe7 {[%clk 0:02:41.1]} 14... Rxe7 {[%clk 0:01:42.2]} 15. Rxe7
{[%clk 0:02:26.2]} 15... Bxe7 {[%clk 0:01:41.9]} 16. cxd4 {[%clk 0:02:25.7]}
16... Nxd4 {[%clk 0:01:41.4]} 17. Re1 {[%clk 0:02:25.9]} 17... Bb4 {[%clk
0:01:36.1]} 18. a3 {[%clk 0:02:21.6]} 18... Bxd2 {[%clk 0:01:25.7]} 19. Bxd2
{[%clk 0:02:22.5]} 19... h6 {[%clk 0:01:20]} 20. Bg6 {[%clk 0:02:19]} 20... Kd7
{[%clk 0:01:17]} 21. f4 {[%clk 0:02:14.6]} 21... Nc6 {[%clk 0:01:13.7]} 22. Bf5+
{[%clk 0:02:03.8]} 22... Kd6 {[%clk 0:01:10.8]} 23. b4 {[%clk 0:02:03.4]} 23...
Re8 {[%clk 0:01:03.8]} 24. Rxe8 {[%clk 0:01:57.7]} 24... Nxe8 {[%clk 0:01:03]}
25. Kf2 {[%clk 0:01:56]} 25... Nd4 {[%clk 0:01:00.6]} 26. Bg6 {[%clk 0:01:53.4]}
26... Nf6 {[%clk 0:00:58.8]} 27. Bc3 {[%clk 0:01:48.7]} 27... Nb5 {[%clk
0:00:56.5]} 28. Bb2 {[%clk 0:01:49.1]} 28... c5 {[%clk 0:00:55.2]} 29. bxc5+
{[%clk 0:01:37.6]} 29... Kxc5 {[%clk 0:00:55.3]} 30. h3 {[%clk 0:01:31.4]} 30...
d4 {[%clk 0:00:54]} 31. g4 {[%clk 0:01:29.9]} 31... Nc3 {[%clk 0:00:50.7]} 32.
Kf3 {[%clk 0:01:24.3]} 32... Kc4 {[%clk 0:00:46.9]} 33. Bf7+ {[%clk 0:01:19.2]}
33... Kd3 {[%clk 0:00:44.7]} 34. g5 {[%clk 0:01:19]} 34... hxg5 {[%clk 0:00:44]}
35. fxg5 {[%clk 0:01:19.9]} 35... Nfe4 {[%clk 0:00:43]} 36. Bg6 {[%clk
0:01:18.7]} 36... Kd2 {[%clk 0:00:30.7]} 37. Bxe4 {[%clk 0:01:13.8]} 1-0